bitfinex-derivatives/quotes_BTCF0:USTF0_20251202
["timestamp","ask_amount","ask_price","bid_price","bid_amount"]
[1764690553095,0.00011001,90806.0,90805.0,0.47342]
[1764690553393,0.00011001,90806.0,90805.0,0.23259]
[1764690553597,0.00011001,90806.0,90803.0,0.0110135]
[1764690553598,0.23620001,90806.0,90803.0,0.0110135]
[1764690553989,0.00011001,90806.0,90801.0,0.3718138]
[1764690555188,0.48095,90802.0,90801.0,0.3608]
[1764690555387,0.48095,90802.0,90796.0,0.00016526]
[1764690555388,0.23609,90797.0,90796.0,0.00016526]
[1764690555593,0.48095,90797.0,90796.0,0.00016526]
[1764690558993,0.48095,90797.0,90796.0,0.01117966]
[1764690559392,0.48095,90797.0,90796.0,0.00016526]
[1764690560094,0.36091001,90806.0,90796.0,0.00016526]
[1764690560095,0.26282074,90806.0,90796.0,0.00016526]
[1764690560300,0.00011001,90806.0,90805.0,0.83422]
[1764690561410,0.23620001,90806.0,90805.0,0.83422]
[1764690561600,0.0110141,90799.0,90798.0,0.23259]
[1764690561802,0.0110139,90801.0,90799.0,0.0110141]
[1764690562003,0.0110142,90799.0,90797.0,0.0110143]
[1764690562204,0.48095,90797.0,90796.0,0.01117966]
[1764690562602,0.48095,90797.0,90796.0,0.00016526]
[1764690565012,0.48095,90797.0,90796.0,0.23275526]
[1764690565207,0.23609,90797.0,90796.0,0.47358526]
[1764690565408,4e-05,90800.0,90796.0,0.47358526]
[1764690565409,4e-05,90800.0,90799.0,0.47342]
[1764690565609,0.00011001,90806.0,90805.0,0.5637033]
[1764690565918,0.0110113,90822.0,90813.0,0.4844324]
[1764690566119,0.0110113,90822.0,90813.0,0.8452324]
[1764690566315,0.78287073,90830.0,90813.0,0.8452324]
[1764690566522,0.3608,90829.0,90813.0,0.8452324]
[1764690566719,0.08930358,90827.0,90813.0,0.83422]
[1764690566918,0.011012,90816.0,90813.0,0.83422]
[1764690567313,0.011012,90816.0,90813.0,0.59339]
[1764690567518,0.011012,90816.0,90813.0,0.3608]
[1764690570427,0.48095,90804.0,90803.0,0.3608]
[1764690571617,0.48095,90804.0,90803.0,0.59339]
[1764690571819,0.48095,90804.0,90803.0,0.83422]
[1764690572020,0.23609,90804.0,90803.0,0.83422]
[1764690572325,0.26271073,90830.0,90814.0,0.4844322]
[1764690572522,0.26271073,90830.0,90814.0,0.8452322]
[1764690572728,1.5,90829.0,90814.0,0.8452322]
[1764690573225,1.5,90829.0,90828.0,0.4562405]
[1764690573417,1.5,90829.0,90828.0,0.8170405]
[1764690574627,1.5,90829.0,90828.0,0.80603]
[1764690576129,0.23261,90829.0,90828.0,0.3608]
[1764690576330,0.4671204,90829.0,90828.0,0.57547]
[1764690576525,0.0110114,90821.0,90819.0,0.00016517]
[1764690576737,0.0110111,90824.0,90823.0,0.21467]
[1764690577124,0.45611,90823.0,90822.0,0.3608]
[1764690579536,0.45611,90823.0,90822.0,0.57547]
[1764690580032,0.45611,90823.0,90822.0,0.78811]
[1764690580227,0.51992,90828.0,90822.0,0.3608]
[1764690580530,0.2235,90828.0,90827.0,0.2256807]
[1764690580734,0.2235,90828.0,90827.0,0.42731]
[1764690581229,0.78259073,90832.0,90831.0,0.21467]
[1764690581531,0.97599,90832.0,90830.0,0.3608]
[1764690581736,0.0110107,90827.0,90823.0,0.42731]
[1764690581937,0.0110107,90827.0,90821.0,0.3608]
[1764690581938,0.0110103,90830.0,90826.0,0.42731]
[1764690582233,0.2235,90827.0,90826.0,0.42731]
[1764690584219,0.79360083,90832.0,90831.0,0.42731]
[1764690584423,1.01710083,90832.0,90831.0,0.78811]
[1764690585233,0.9870001,90832.0,90831.0,0.78811]
[1764690586025,0.74338,90832.0,90831.0,0.78811]
[1764690586240,0.51988,90832.0,90831.0,0.78811]
[1764690586539,0.51988,90832.0,90831.0,0.7991202]
[1764690587034,1.5,90836.0,90835.0,0.42731]
[1764690589036,0.45611,90832.0,90831.0,0.57547]
[1764690589234,1.5,90836.0,90835.0,0.42731]
[1764690589536,0.00016517,90838.0,90837.0,0.42731]
[1764690589738,4e-05,90850.0,90845.0,0.42731]
[1764690589930,4e-05,90850.0,90845.0,0.7991185]
[1764690590529,0.08769827,90857.0,90856.0,0.42731]
[1764690590734,0.08769827,90857.0,90856.0,0.7991172]
[1764690590931,0.2345053,90872.0,90871.0,0.42731]
[1764690591336,0.45615,90880.0,90879.0,0.4383144]
[1764690591543,0.45615,90880.0,90879.0,0.42731]
[1764690592041,0.45611,90875.0,90874.0,0.3608]
[1764690592336,0.4671148,90875.0,90874.0,0.78811]
[1764690592532,0.4671148,90875.0,90874.0,0.3608]
[1764690592746,0.4671153,90871.0,90870.0,0.21483507]
[1764690593038,0.4671153,90871.0,90870.0,0.00016507]
[1764690595637,0.0110084,90846.0,90845.0,0.3608]
[1764690595841,0.4671184,90846.0,90845.0,0.78811]
[1764690596531,0.4671184,90846.0,90845.0,0.3608]
[1764690597131,0.4671184,90846.0,90845.0,0.57547]
[1764690597430,0.4671584,90846.0,90845.0,0.57547]
[1764690597736,0.4671584,90846.0,90845.0,0.78811]
[1764690598329,0.4671584,90846.0,90845.0,0.3608]
[1764690598936,4e-05,90846.0,90845.0,0.78811]
[1764690600546,0.00016507,90855.0,90854.0,0.4383174]
[1764690600727,0.45611,90874.0,90873.0,0.2256751]
[1764690600933,0.2235,90874.0,90873.0,0.4383151]
[1764690601247,0.05903905,90880.0,90867.0,0.3608]
[1764690601248,0.22354,90880.0,90879.0,0.21467]
[1764690601437,0.22354,90880.0,90877.0,0.0110046]
[1764690601438,0.00027507,90886.0,90885.0,0.4383136]
[1764690601744,0.05004,90900.0,90899.0,0.42731]
[1764690601943,0.05004,90900.0,90899.0,0.78811]
[1764690603044,0.00016507,90909.0,90908.0,0.4012809]
[1764690603243,0.35173337,90930.0,90917.0,0.0109997]
[1764690603430,0.0109986,90927.0,90925.0,0.39028]
[1764690603634,0.35173337,90930.0,90925.0,0.39028]
[1764690603838,0.00027495,90926.0,90925.0,0.39028]
[1764690604042,0.00027495,90926.0,90922.0,0.0109991]
[1764690604043,0.21076,90923.0,90922.0,0.39028]
[1764690604240,0.40657,90923.0,90919.0,0.7216]
[1764690604538,0.19581,90920.0,90919.0,0.3608]
[1764690604739,0.40657,90920.0,90919.0,0.3608]
[1764690604944,0.40657,90920.0,90905.0,0.3608]
[1764690604945,0.40657,90906.0,90905.0,0.3608]
[1764690605437,0.0110001,90914.0,90907.0,0.39028]
[1764690605632,0.35173337,90915.0,90907.0,0.1993]
[1764690605835,0.75830337,90915.0,90914.0,0.39028]
[1764690606137,0.75830337,90915.0,90905.0,0.3608]
[1764690606455,0.40657,90906.0,90905.0,0.3608]
[1764690606655,0.0110012,90906.0,90897.0,0.3608]
[1764690606950,0.0110016,90903.0,90897.0,0.3608]
[1764690607155,0.00016497,90912.0,90899.0,0.39044507]
[1764690607338,0.00016497,90912.0,90911.0,0.39028]
[1764690608243,0.3608,90932.0,90907.0,0.3608]
[1764690608244,0.05899905,90951.0,90925.0,0.4012788]
[1764690608442,0.06956,90958.0,90925.0,0.4012788]
[1764690608443,0.21076,90926.0,90925.0,0.3608]
[1764690608738,0.13356,90944.0,90925.0,0.75108]
[1764690609045,0.43937318,90950.0,90933.0,0.3608]
[1764690609243,0.0109959,90949.0,90937.0,0.0109973]
[1764690609440,0.010996,90949.0,90937.0,0.0109973]
[1764690609647,0.0109963,90946.0,90945.0,0.39028]
[1764690609842,0.0109959,90949.0,90945.0,0.39028]
[1764690610042,0.0109959,90949.0,90933.0,0.3608]
[1764690610043,4e-05,90950.0,90949.0,0.39028]
[1764690610645,4e-05,90950.0,90943.0,0.3608]
[1764690610646,0.2068458,90950.0,90943.0,0.3608]
[1764690610846,0.40657,90944.0,90943.0,0.3608]
[1764690611249,0.40657,90944.0,90933.0,0.3608]
[1764690611250,0.0109971,90939.0,90935.0,0.3608]
[1764690611551,0.0109969,90941.0,90935.0,0.3608]
[1764690611854,0.35173337,90942.0,90935.0,0.3608]
[1764690612550,0.35173337,90942.0,90936.0,0.0109975]
[1764690612744,0.35173337,90942.0,90941.0,0.19098]
[1764690612939,0.35173337,90942.0,90936.0,0.0109975]
[1764690612940,0.2217564,90946.0,90945.0,0.39028]
[1764690613153,0.2217564,90946.0,90935.0,0.3608]
[1764690613154,0.4175664,90946.0,90936.0,0.0109975]
[1764690613453,0.36084,90950.0,90935.0,0.3608]
[1764690613454,0.0109968,90942.0,90935.0,0.3608]
[1764690613841,0.35173337,90945.0,90935.0,0.3608]
[1764690613842,0.40657,90936.0,90935.0,0.3608]
[1764690614249,0.35173337,90945.0,90935.0,0.3608]
[1764690614544,4e-05,90950.0,90944.0,0.3608]
[1764690614749,4e-05,90950.0,90949.0,0.19098]
[1764690614750,0.75834337,90950.0,90949.0,0.19098]
[1764690614938,0.40657,90945.0,90944.0,0.3608]
[1764690615745,0.4175675,90936.0,90935.0,0.3608]
[1764690615946,0.40657,90933.0,90932.0,0.00016497]
[1764690616152,0.40657,90933.0,90932.0,0.19114497]
[1764690616350,0.40657,90933.0,90932.0,0.00016497]
[1764690616551,0.4175678,90933.0,90932.0,0.00016497]
[1764690616761,0.4175678,90933.0,90932.0,7e-08]
[1764690616952,0.0110002,90914.0,90909.0,0.39028]
[1764690617346,0.0110005,90912.0,90909.0,0.39028]
[1764690617952,0.35189834,90920.0,90906.0,0.3608]
[1764690618553,0.35189834,90920.0,90906.0,0.371801]
[1764690618755,0.0110002,90914.0,90906.0,0.3608]
[1764690618963,0.25189834,90920.0,90909.0,0.0110007]
[1764690619146,0.25189834,90920.0,90906.0,0.3608]
[1764690619345,0.40657,90907.0,90906.0,0.3608]
[1764690619548,0.13356,90916.0,90901.0,0.00016497]
[1764690619549,0.4956316,90902.0,90901.0,0.00016497]
[1764690621658,0.4996316,90902.0,90901.0,0.00016497]
[1764690622053,0.48863,90902.0,90901.0,0.00016497]
[1764690623549,0.48463,90902.0,90901.0,0.00016497]
[1764690623750,0.48763,90902.0,90901.0,0.00016497]
[1764690624356,0.48463,90902.0,90901.0,0.00016497]
[1764690624557,0.48863,90902.0,90901.0,0.00016497]
[1764690625464,0.417574,90882.0,90881.0,0.00010513]
[1764690625953,0.3608,90889.0,90884.0,0.39028]
[1764690626355,0.35173337,90891.0,90881.0,0.00010513]
[1764690626558,0.00016497,90896.0,90886.0,0.3608]
[1764690626559,0.21076,90892.0,90886.0,0.3608]
[1764690626751,0.21076,90887.0,90886.0,0.55178]
[1764690626951,0.21076,90887.0,90886.0,0.75108]
[1764690627459,0.40657,90887.0,90886.0,0.75108]
[1764690627651,0.40657,90882.0,90881.0,0.00010513]
[1764690627860,0.21076,90882.0,90881.0,0.39038513]
[1764690628057,0.417574,90882.0,90881.0,0.19108513]
[1764690628358,0.417574,90882.0,90881.0,0.00010513]
[1764690628562,0.417574,90882.0,90877.0,0.00016497]
[1764690628563,0.40657,90878.0,90877.0,0.00016497]
[1764690628766,0.011004,90882.0,90859.0,0.3608]
[1764690628767,0.0110041,90881.0,90859.0,0.3608]
[1764690628962,0.4175766,90860.0,90859.0,0.3608]
[1764690629361,0.40657,90860.0,90859.0,0.55178]
[1764690629564,0.21086496,90860.0,90859.0,0.75108]
[1764690629764,0.00010496,90860.0,90859.0,0.75108]
[1764690631567,0.01410496,90860.0,90859.0,0.75108]
[1764690633262,0.00016507,90869.0,90868.0,0.3881756]
[1764690633470,0.3705234,90887.0,90886.0,0.37825]
[1764690633765,0.01099779,90896.0,90891.0,0.37825]
[1764690633766,0.3718027,90892.0,90891.0,0.37825]
[1764690634156,0.3608,90892.0,90891.0,0.37825]
[1764690635066,0.72032,90892.0,90891.0,0.37825]
[1764690635273,0.0110029,90891.0,90885.0,0.0110036]
[1764690635471,0.0110034,90887.0,90884.0,0.3608]
[1764690635664,0.0110034,90887.0,90886.0,0.19206]
[1764690635859,0.1903534,90887.0,90886.0,0.19206]
[1764690636371,0.3705234,90887.0,90886.0,0.19206]
[1764690636568,0.08602966,90891.0,90886.0,0.37825]
[1764690636776,0.71253337,90900.0,90886.0,0.37825]
[1764690636777,0.0110032,90889.0,90888.0,0.19206]
[1764690637475,0.3705232,90889.0,90888.0,0.19206]
[1764690638168,0.3835232,90889.0,90888.0,0.19306]
[1764690638574,0.3835232,90889.0,90888.0,0.001]
[1764690639166,0.7443232,90889.0,90888.0,0.001]
[1764690639367,0.4801638,90883.0,90882.0,0.00016507]
[1764690639959,0.8409638,90883.0,90882.0,0.00016507]
[1764690640166,0.1903558,90867.0,90866.0,0.3608]
[1764690640668,0.17935,90867.0,90866.0,0.3608]
[1764690640870,0.0110051,90873.0,90867.0,0.0110058]
[1764690641267,0.1903558,90867.0,90866.0,0.3608]
[1764690641487,0.3705258,90867.0,90866.0,0.3608]
[1764690641777,0.3805258,90867.0,90866.0,0.3618]
[1764690642171,0.36952,90867.0,90866.0,0.3618]
[1764690643075,0.73032,90867.0,90866.0,0.001]
[1764690643575,0.36952,90867.0,90866.0,0.001]
[1764690643779,0.01,90867.0,90866.0,0.37925]
[1764690644371,0.01,90867.0,90866.0,0.74005]
[1764690647766,0.18935,90867.0,90866.0,0.74005]
[1764690647981,0.36952,90867.0,90866.0,0.74005]
[1764690648182,0.36952,90867.0,90866.0,0.3618]
[1764690648484,0.36952,90867.0,90866.0,0.74005]
[1764690648485,0.01,90867.0,90866.0,0.74005]
[1764690652289,0.18935,90867.0,90866.0,0.74005]
[1764690652685,0.36952,90867.0,90866.0,0.3618]
[1764690653587,0.36952,90867.0,90866.0,0.001]
[1764690654670,0.0110068,90859.0,90857.0,0.17297207]
[1764690654875,0.011007,90857.0,90846.0,0.13867349]
[1764690655076,0.17935,90857.0,90856.0,0.37825]
[1764690655589,0.18935,90867.0,90866.0,0.37825]
[1764690655884,0.01,90867.0,90866.0,0.37825]
[1764690656985,0.17951507,90876.0,90875.0,0.37825]
[1764690658185,0.17951507,90876.0,90875.0,0.19206]
[1764690658186,0.35968507,90876.0,90875.0,0.19206]
[1764690658383,0.17935,90871.0,90870.0,0.7500554]
[1764690658685,0.00016507,90876.0,90875.0,0.37825]
[1764690658686,0.17951507,90876.0,90875.0,0.37825]
[1764690659380,0.35968507,90876.0,90875.0,0.37825]
[1764690660477,0.35968507,90876.0,90875.0,0.37925]
[1764690660478,0.01216507,90876.0,90875.0,0.37925]
[1764690661577,0.05899905,90900.0,90899.0,0.37825]
[1764690661776,0.3608,90908.0,90904.0,0.37825]
[1764690661777,0.05899905,90905.0,90904.0,0.37825]
[1764690661984,0.35952,90905.0,90904.0,0.37825]
[1764690662181,0.35952,90905.0,90894.0,0.3608]
[1764690662182,0.0110013,90904.0,90894.0,0.3608]
[1764690662380,0.35952,90904.0,90903.0,0.0110014]
[1764690662582,0.35952,90904.0,90903.0,0.3889414]
[1764690662777,0.26242457,90913.0,90912.0,0.3756904]
[1764690662996,0.00016507,90913.0,90912.0,0.8532804]
[1764690663592,0.0113467,90931.0,90930.0,0.36469]
[1764690663790,0.2622595,90940.0,90926.0,0.3608]
[1764690664002,0.37041,90931.0,90930.0,0.36469]
[1764690664391,0.37041,90931.0,90926.0,0.3608]
[1764690664392,0.0109982,90930.0,90926.0,0.3608]
[1764690664597,0.26242448,90940.0,90921.0,0.00016498]
[1764690664598,0.3814092,90922.0,90921.0,0.00016498]
[1764690664779,0.4980892,90922.0,90921.0,0.00016498]
[1764690665588,0.4980892,90922.0,90897.0,0.3608]
[1764690665589,0.3814121,90898.0,90897.0,0.3608]
[1764690665776,0.3814121,90898.0,90896.0,0.02910142]
[1764690665777,0.37041,90898.0,90893.0,0.3608]
[1764690665977,0.6230595,90908.0,90878.0,0.3608]
[1764690665978,0.0110025,90895.0,90894.0,0.36469]
[1764690666287,0.6230595,90908.0,90878.0,0.3608]
[1764690666288,0.37041,90886.0,90885.0,0.02910142]
[1764690666584,0.08913022,90887.0,90886.0,0.1968835]
[1764690666787,0.27342698,90895.0,90886.0,0.3756935]
[1764690666979,0.26242448,90895.0,90894.0,0.36469]
[1764690667178,0.00016498,90895.0,90894.0,0.36469]
[1764690667377,0.37057498,90895.0,90889.0,0.3608]
[1764690667581,0.37041,90890.0,90889.0,0.3608]
[1764690667783,0.37041,90886.0,90885.0,0.001]
[1764690667993,0.37041,90886.0,90885.0,0.17881]
[1764690668183,0.3583172,90895.0,90894.0,0.36469]
[1764690668382,0.3583172,90895.0,90878.0,0.3608]
[1764690668383,0.4664677,90895.0,90888.0,0.0110032]
[1764690668582,0.4664677,90895.0,90878.0,0.3608]
[1764690668583,0.01016498,90895.0,90878.0,0.3608]
[1764690668786,0.19063,90880.0,90879.0,0.0110044]
[1764690669088,0.19063,90880.0,90878.0,0.3608]
[1764690669286,0.37041,90879.0,90878.0,0.3608]
[1764690669585,0.46022594,90879.0,90878.0,0.53961]
[1764690669791,0.08981594,90879.0,90878.0,0.72549]
[1764690669991,0.2622595,90888.0,90887.0,0.3756934]
[1764690670183,0.3608,90889.0,90888.0,0.36469]
[1764690670378,0.00016498,90895.0,90894.0,0.3756925]
[1764690670585,0.0896659,90895.0,90894.0,0.3756925]
[1764690670889,0.00016498,90895.0,90894.0,0.3756925]
[1764690671602,0.3608,90926.0,90918.0,0.0109996]
[1764690671992,0.19063,90915.0,90914.0,0.0110001]
[1764690672399,0.19063,90915.0,90912.0,0.3718004]
[1764690672592,0.19063,90915.0,90912.0,0.3608]
[1764690672792,0.0110009,90908.0,90905.0,0.00016498]
[1764690672991,0.3814111,90906.0,90905.0,0.00016498]
[1764690673188,0.37041,90906.0,90905.0,0.00016498]
[1764690673383,0.3608,90915.0,90914.0,0.36969]
[1764690673588,0.2622595,90920.0,90915.0,0.011]
[1764690674389,0.2622595,90920.0,90907.0,0.3608]
[1764690674390,0.2622595,90920.0,90913.0,0.0110001]
[1764690675189,0.273259,90920.0,90907.0,0.3608]
[1764690675390,0.2622595,90920.0,90919.0,0.17881]
[1764690675686,0.00016498,90924.0,90923.0,0.36469]
[1764690676088,0.19079498,90924.0,90923.0,0.36469]
[1764690676293,0.37041,90916.0,90915.0,0.3608]
[1764690676492,0.00016498,90924.0,90915.0,0.3608]
[1764690676493,0.00016498,90924.0,90923.0,0.36469]
[1764690676703,0.00016498,90924.0,90923.0,0.72549]
[1764690677092,0.00016498,90924.0,90923.0,0.72849]
[1764690677903,0.00816498,90924.0,90923.0,0.72549]
[1764690678297,0.08624983,90936.0,90935.0,0.3756876]
[1764690678497,0.41979905,90951.0,90949.0,0.3756859]
[1764690678498,0.3608,90951.0,90949.0,0.3756859]
[1764690679500,0.00016498,90959.0,90949.0,0.3756859]
[1764690679501,0.00016498,90959.0,90958.0,0.3756848]
[1764690679804,0.00016498,90959.0,90958.0,0.72549]
[1764690680305,0.00016498,90959.0,90958.0,0.53961]
[1764690680500,0.00016498,90959.0,90958.0,0.72549]
[1764690680701,0.00016498,90959.0,90958.0,0.53961]
[1764690681002,0.00016498,90959.0,90958.0,0.72749]
[1764690681999,0.37057498,90959.0,90958.0,0.002]
[1764690683004,0.19079498,90959.0,90958.0,0.002]
[1764690683201,0.19079498,90959.0,90958.0,0.003]
[1764690683504,0.00016498,90959.0,90958.0,0.36769]
[1764690684297,0.63406822,90980.0,90958.0,0.36769]
[1764690684298,0.3608,90980.0,90979.0,0.3756823]
[1764690684608,0.3608,90980.0,90979.0,0.36469]
[1764690685300,0.2622595,90989.0,90983.0,0.36469]
[1764690685301,0.26236797,90989.0,90983.0,0.36469]
[1764690685494,0.00010847,90989.0,90983.0,0.36469]
[1764690685691,0.0109913,90987.0,90983.0,0.36469]
[1764690685903,0.00010847,90989.0,90983.0,0.17881]
[1764690686099,0.00010847,90989.0,90983.0,0.36469]
[1764690687501,0.00010847,90989.0,90983.0,0.37069]
[1764690688009,0.00010847,90989.0,90983.0,0.73349]
[1764690688707,0.00010847,90989.0,90983.0,0.37269]
[1764690688899,0.0109916,90985.0,90983.0,0.37269]
[1764690689094,0.36090847,90989.0,90983.0,0.37269]
[1764690689610,0.00010847,90989.0,90983.0,0.37269]
[1764690689799,0.3608,91034.0,91033.0,0.36469]
[1764690690004,0.3608,91034.0,91008.0,0.10727]
[1764690690005,0.19063,91034.0,91029.0,0.3608]
[1764690690203,0.3608,91054.0,91045.0,0.36469]
[1764690690407,0.3608,91054.0,91029.0,0.3608]
[1764690690408,0.0869398,91070.0,91053.0,0.53961]
[1764690690595,4e-05,91087.0,91040.0,0.11739]
[1764690690596,0.0109815,91069.0,91048.0,0.0109839]
[1764690690802,4e-05,91087.0,91069.0,0.54549]
[1764690690803,0.35037726,91070.0,91069.0,0.54549]
[1764690690996,0.2732398,91079.0,91073.0,0.17881]
[1764690691307,0.06997585,91107.0,91069.0,0.1808]
[1764690691308,0.3608,91151.0,91136.0,0.11739]
[1764690691511,0.05850208,91161.0,91136.0,0.11739]
[1764690691713,0.2622595,91170.0,91139.0,0.00016456]
[1764690691902,0.37041,91170.0,91169.0,0.3608]
[1764690692099,0.37041,91170.0,91169.0,0.33582953]
[1764690692322,0.01123911,91206.0,91178.0,0.17017]
[1764690692501,0.38164911,91206.0,91205.0,0.7216]
[1764690692811,0.9100877,91206.0,91205.0,0.64428354]
[1764690693109,0.68336,91197.0,91196.0,0.00016446]
[1764690693316,0.68336,91197.0,91186.0,0.3608]
[1764690693317,0.68336,91193.0,91186.0,0.3608]
[1764690693499,0.68336,91187.0,91186.0,0.3608]
[1764690694099,0.3608,91197.0,91176.0,0.3608]
[1764690694301,0.68336,91188.0,91187.0,0.3608]
[1764690694510,0.01131359,91206.0,91187.0,0.3608]
[1764690694511,0.38018806,91206.0,91190.0,0.11416]
[1764690694713,0.38018806,91206.0,91186.0,0.001]
[1764690694714,0.68336,91206.0,91205.0,0.3608]
[1764690694899,0.10925,91234.0,91202.0,0.3608]
[1764690694900,0.33593,91203.0,91202.0,0.7216]
[1764690695105,2.45989493,91203.0,91202.0,0.34141194]
[1764690695416,0.0001631,91215.0,91202.0,0.34141194]
[1764690695597,0.0001631,91215.0,91214.0,0.3608]
[1764690696015,0.010961,91239.0,91214.0,1.04665]
[1764690696211,0.2622595,91250.0,91235.0,0.3608]
[1764690696404,0.3717584,91260.0,91235.0,1.04665]
[1764690696609,0.2622595,91260.0,91235.0,1.04665]
[1764690696819,0.3608,91269.0,91235.0,1.04665]
[1764690696820,0.0109583,91261.0,91235.0,1.04665]
[1764690697011,0.2622595,91250.0,91245.0,0.68585]
[1764690697311,0.0109596,91251.0,91245.0,0.3608]
[1764690697521,0.31928,91264.0,91235.0,0.3608]
[1764690697522,0.0109613,91236.0,91235.0,0.3608]
[1764690697708,0.0109613,91236.0,91226.0,0.00016446]
[1764690697709,0.3608,91236.0,91226.0,0.00016446]
[1764690697903,0.0109594,91252.0,91226.0,0.00016446]
[1764690698102,0.2622595,91236.0,91226.0,0.36096446]
[1764690698302,0.2622595,91236.0,91226.0,0.00016446]
[1764690698303,0.5466815,91235.0,91226.0,0.00016446]
[1764690698503,0.2622595,91240.0,91234.0,0.33244]
[1764690698706,0.0547816,91278.0,91234.0,0.33244]
[1764690698707,0.3608,91260.0,91234.0,0.33244]
[1764690698916,0.3608,91260.0,91239.0,0.3608]
[1764690699104,0.2622595,91249.0,91239.0,0.3608]
[1764690699308,0.3608,91260.0,91251.0,0.68585]
[1764690699502,0.08770159,91264.0,91263.0,0.33244]
[1764690699709,0.2622595,91273.0,91263.0,0.68585]
[1764690699920,0.2622595,91273.0,91263.0,0.33244]
[1764690700312,0.2622595,91273.0,91256.0,0.3608]
[1764690700313,0.3608,91279.0,91265.0,0.3608]
[1764690700518,0.0109563,91278.0,91265.0,0.3608]
[1764690700820,0.0109583,91261.0,91248.0,0.3608]
[1764690701115,0.2622595,91260.0,91256.0,0.3608]
[1764690701324,0.2622595,91260.0,91248.0,0.3608]
[1764690701534,0.3608,91254.0,91253.0,0.68585]
[1764690701719,0.2622595,91263.0,91248.0,0.3608]
[1764690702019,0.2622595,91263.0,91246.0,0.00016446]
[1764690702020,0.33716,91247.0,91246.0,0.00016446]
[1764690702206,0.3608,91262.0,91246.0,0.00016446]
[1764690702207,0.89784,91248.0,91246.0,0.00016446]
[1764690702410,1.23079,91247.0,91246.0,0.00016446]
[1764690702624,1.23079,91247.0,91222.0,0.3608]
[1764690702625,0.89788,91247.0,91222.0,0.3608]
[1764690702811,0.89788,91247.0,91209.0,0.3608]
[1764690702812,0.0109635,91219.0,91209.0,0.3608]
[1764690703021,0.0109649,91207.0,91194.0,0.3608]
[1764690703207,0.0109655,91201.0,91194.0,0.3608]
[1764690703407,0.3608,91202.0,91176.0,0.3608]
[1764690703610,0.2622595,91190.0,91176.0,0.3608]
[1764690703822,0.3608,91202.0,91184.0,0.3608]
[1764690703823,0.53692,91189.0,91184.0,0.3608]
[1764690704018,0.69371,91185.0,91184.0,0.3608]
[1764690704226,0.0109676,91184.0,91180.0,0.00016445]
[1764690704722,0.0109708,91157.0,91140.0,0.3608]
[1764690704922,0.3608,91141.0,91129.0,0.0001209]
[1764690705127,0.3608,91157.0,91139.0,0.3608]
[1764690705128,0.00011689,91140.0,91139.0,0.3608]
[1764690706207,0.00011689,91140.0,91131.0,0.3608]
[1764690706410,0.010973,91139.0,91131.0,0.3608]
[1764690706615,0.36091689,91140.0,91130.0,0.00016455]
[1764690706616,0.0109736,91134.0,91130.0,0.00016455]
[1764690707119,0.3608,91131.0,91130.0,0.00016455]
[1764690707309,0.5364,91138.0,91130.0,0.00016455]
[1764690707925,0.0109732,91137.0,91130.0,0.00016455]
[1764690708423,0.3608,91131.0,91130.0,0.00016455]
[1764690709423,0.36090613,91131.0,91130.0,0.00016455]
[1764690710427,0.3608,91145.0,91137.0,0.6968232]
[1764690710616,0.00016455,91149.0,91130.0,0.00216455]
[1764690710617,0.00016455,91149.0,91144.0,0.33244]
[1764690710818,0.00016455,91149.0,91130.0,0.00216455]
[1764690710819,0.3608,91145.0,91130.0,0.00216455]
[1764690711021,0.3608,91132.0,91130.0,0.00216455]
[1764690711817,0.3608,91137.0,91130.0,0.00216455]
[1764690712018,0.00016455,91149.0,91136.0,0.3608]
[1764690712218,0.00016455,91149.0,91145.0,0.3608]
[1764690712826,0.00016455,91149.0,91137.0,0.0119732]
[1764690712827,0.3608,91147.0,91137.0,0.001]
[1764690713020,0.0109731,91138.0,91137.0,0.001]
[1764690713221,0.0109731,91138.0,91130.0,0.00016455]
[1764690714334,0.3608,91139.0,91137.0,0.002]
[1764690714515,0.7046831,91138.0,91137.0,0.002]
[1764690714720,0.0109737,91134.0,91130.0,0.00016455]
[1764690714931,0.69796,91131.0,91130.0,0.00016455]
[1764690715232,1.05451,91131.0,91130.0,0.00016455]
[1764690715419,0.010974,91130.0,91102.0,0.56405]
[1764690715618,1.45451,91131.0,91094.0,0.3608]
[1764690715619,0.0109765,91110.0,91094.0,0.3608]
[1764690715826,0.3608,91111.0,91094.0,0.3608]
[1764690716025,0.0109779,91099.0,91085.0,0.3608]
[1764690716728,0.33716,91084.0,91083.0,0.00016465]
[1764690716934,0.33727282,91084.0,91083.0,0.00016465]
[1764690717340,0.00011282,91084.0,91083.0,0.00016465]
[1764690717930,0.00011282,91084.0,91083.0,0.36096465]
[1764690718333,0.33727282,91084.0,91083.0,0.00016465]
[1764690718520,0.69382282,91084.0,91083.0,0.00016465]
[1764690719016,0.00011282,91084.0,91058.0,0.20325]
[1764690719220,0.0109815,91068.0,91056.0,0.3608]
[1764690719420,0.00013166,91067.0,91056.0,0.3608]
[1764690719635,0.3608,91061.0,91048.0,0.0109838]
[1764690719832,0.3608,91061.0,91047.0,0.3608]
[1764690720225,0.00016474,91063.0,91059.0,0.0109825]
[1764690720546,0.0109839,91048.0,91045.0,0.00016474]
[1764690720834,0.00010649,91047.0,91045.0,0.00016474]
[1764690721133,0.00010649,91047.0,91038.0,0.3609415]
[1764690721134,0.704695,91039.0,91038.0,0.0001415]
[1764690721433,0.69371,91037.0,91036.0,0.00176475]
[1764690721627,0.69371,91037.0,90999.0,0.3717898]
[1764690721628,0.2167454,91036.0,90999.0,0.3717898]
[1764690721927,0.0109877,91018.0,91000.0,0.0109897]
[1764690722127,0.0109878,91016.0,90999.0,0.3717897]
[1764690722324,0.00013166,91017.0,90999.0,0.3717897]
[1764690722325,0.3608,91007.0,91000.0,0.00016474]
[1764690722625,0.3608,91070.0,91014.0,0.13039]
[1764690722826,0.0109821,91063.0,91048.0,0.3608]
[1764690723026,0.32625,91051.0,91050.0,0.3608]
[1764690723430,0.00016474,91051.0,91039.0,0.3608]
[1764690724238,0.00016473,91054.0,91047.0,0.3608]
[1764690724539,0.00016474,91053.0,91047.0,0.3608]
[1764690725626,0.00016474,91053.0,91047.0,0.3618]
[1764690726434,0.01114804,91053.0,91047.0,0.3618]